bitfinex/quotes_BTCUSD_20241202
["timestamp","ask_amount","ask_price","bid_price","bid_amount"]
[1733111527558,0.227927,96962.0,96942.0,0.206308]
[1733111527773,0.227927,96962.0,96948.0,0.206295]
[1733111527998,0.00180572,96961.0,96948.0,0.206295]
[1733111528218,0.206272,96959.0,96940.0,0.206313]
[1733111528426,0.1263,96957.0,96940.0,0.206313]
[1733111528630,0.10696938,96956.0,96940.0,0.206313]
[1733111528840,0.10696938,96956.0,96938.0,0.01462]
[1733111529296,0.02056838,96950.0,96941.0,0.206309]
[1733111529534,0.10696938,96956.0,96941.0,0.206309]
[1733111529535,0.0022823,96949.0,96941.0,0.206309]
[1733111529769,0.02066944,96954.0,96944.0,0.15]
[1733111529982,0.00228227,96953.0,96945.0,0.206302]
[1733111530211,0.00228226,96952.0,96946.0,0.15]
[1733111530450,0.00411075,96951.0,96946.0,0.15]
[1733111530869,0.00411075,96951.0,96948.0,0.002]
[1733111531083,0.00411075,96951.0,96946.0,0.15]
[1733111531516,0.00411075,96951.0,96946.0,0.2083]
[1733111531750,0.02014352,96967.0,96944.0,0.002]
[1733111531751,0.10284521,96950.0,96944.0,0.002]
[1733111531980,0.0808,96948.0,96939.0,0.00146064]
[1733111532200,0.1305,96946.0,96939.0,0.00146064]
[1733111532408,0.206304,96944.0,96939.0,0.00146064]
[1733111532622,0.0806,96942.0,96939.0,0.00146064]
[1733111532848,0.0483,96940.0,96939.0,0.00146064]
[1733111533091,0.0483,96940.0,96931.0,0.1508673]
[1733111533092,0.206329,96933.0,96931.0,0.0008673]
[1733111533318,0.23579965,96932.0,96931.0,0.0008673]
[1733111533551,0.23351689,96932.0,96931.0,0.0008673]
[1733111534960,0.23351689,96932.0,96931.0,0.0028673]
[1733111535400,0.13067168,96932.0,96931.0,0.0028673]
[1733111536278,0.13067168,96932.0,96931.0,0.0008673]
[1733111536487,0.13667168,96932.0,96931.0,0.0028673]
[1733111536950,0.13667168,96932.0,96931.0,0.0008673]
[1733111537166,0.24179951,96932.0,96931.0,0.0008673]
[1733111537380,0.23351689,96932.0,96931.0,0.0008673]
[1733111537821,0.23951689,96932.0,96931.0,0.0018673]
[1733111539560,0.24251689,96932.0,96931.0,0.0018673]
[1733111541222,0.332732,96931.0,96930.0,0.19953547]
[1733111541431,0.43557721,96931.0,96930.0,0.19953547]
[1733111541643,0.90920774,96931.0,96930.0,0.19953547]
[1733111542150,0.90920774,96931.0,96930.0,0.07143547]
[1733111542358,0.306349,96923.0,96922.0,0.0008673]
[1733111542568,0.53554129,96923.0,96922.0,0.0008673]
[1733111543437,0.53554129,96923.0,96920.0,0.2]
[1733111543438,0.434753,96921.0,96920.0,0.1219]
[1733111543677,0.53759821,96921.0,96920.0,0.1219]
[1733111543902,0.53936685,96921.0,96920.0,0.1169]
[1733111545270,0.306366,96915.0,96914.0,0.00049332]
[1733111545503,0.53791121,96915.0,96914.0,0.00049332]
[1733111545798,0.53967308,96915.0,96914.0,0.00049332]
[1733111546465,0.91155461,96915.0,96914.0,0.00049332]
[1733111546697,0.91455461,96915.0,96914.0,0.00049332]
[1733111546926,0.55228153,96912.0,96886.0,0.00051447]
[1733111547166,0.65512674,96912.0,96911.0,0.00968872]
[1733111547399,0.309294,96902.0,96886.0,0.00051447]
[1733111547622,0.41213921,96902.0,96886.0,0.00051447]
[1733111547860,0.41386798,96902.0,96886.0,0.00051447]
[1733111548092,0.41386798,96902.0,96901.0,0.185]
[1733111548805,0.41446185,96902.0,96901.0,0.185]
[1733111549223,0.10516785,96902.0,96901.0,0.185]
[1733111549713,0.10745132,96902.0,96901.0,0.185]
[1733111550156,0.11216785,96902.0,96901.0,0.185]
[1733111550385,0.12116785,96902.0,96901.0,0.185]
[1733111550599,0.11416785,96902.0,96901.0,0.185]
[1733111550809,0.11916785,96902.0,96901.0,0.185]
[1733111551966,0.12116785,96902.0,96901.0,0.185]
[1733111554958,0.12116785,96902.0,96901.0,0.165483]
[1733111555478,0.22116785,96902.0,96901.0,0.165483]
[1733111557264,0.22116785,96902.0,96901.0,0.154647]
[1733111557490,0.30256785,96902.0,96901.0,0.154647]
[1733111557713,0.59304938,96902.0,96901.0,0.154647]
[1733111557928,0.49304938,96902.0,96901.0,0.154647]
[1733111559038,0.12116785,96902.0,96901.0,0.154647]
[1733111559469,0.01832264,96902.0,96901.0,0.154647]
[1733111559676,0.01832264,96902.0,96901.0,0.235547]
[1733111559914,0.01659387,96902.0,96901.0,0.235547]
[1733111560643,0.00259387,96902.0,96901.0,0.235547]
[1733111560874,0.00059387,96902.0,96901.0,0.235547]
[1733111561123,0.00059387,96902.0,96901.0,0.154647]
[1733111561347,0.00059387,96902.0,96901.0,0.155647]
[1733111561582,0.00059387,96902.0,96901.0,0.1565141]
[1733111561815,0.0017342,96902.0,96901.0,0.1555141]
[1733111562266,0.0017342,96902.0,96901.0,0.1565141]
[1733111563797,0.0017342,96902.0,96901.0,0.2338141]
[1733111564017,0.0017342,96902.0,96901.0,0.2328141]
[1733111564935,0.0017342,96902.0,96901.0,0.2338141]
[1733111565361,0.0017342,96902.0,96901.0,0.2328141]
[1733111565800,0.0017342,96902.0,96901.0,0.2338141]
[1733111567115,0.0017342,96902.0,96901.0,0.1555141]
[1733111567588,0.0017342,96902.0,96901.0,0.1565141]
[1733111569063,0.0017342,96902.0,96901.0,0.1555141]
[1733111570342,0.0017342,96902.0,96901.0,0.1565141]
[1733111570799,0.0017342,96902.0,96901.0,0.1555141]
[1733111571247,0.0017342,96902.0,96901.0,0.1565141]
[1733111571914,0.0017342,96902.0,96901.0,0.0018671]
[1733111575752,0.10633374,96902.0,96901.0,0.0018671]
[1733111576168,0.10633374,96902.0,96901.0,0.0008671]
[1733111576645,0.23343374,96902.0,96901.0,0.0018671]
[1733111576881,0.35634203,96902.0,96901.0,0.0018671]
[1733111577087,0.35634203,96902.0,96901.0,0.0008671]
[1733111577088,0.73122356,96902.0,96901.0,0.0008671]
[1733111577796,0.75194515,96902.0,96901.0,0.0008671]
[1733111578228,0.75894515,96902.0,96901.0,0.0008671]
[1733111578443,0.75594515,96902.0,96901.0,0.0008671]
[1733111578667,0.74641869,96902.0,96901.0,0.0008671]
[1733111578873,0.75694193,96902.0,96901.0,0.0008671]
[1733111579167,0.75594193,96902.0,96901.0,0.0008671]
[1733111579611,0.75541869,96902.0,96901.0,0.0008671]
[1733111580500,0.76494066,96902.0,96901.0,0.0008671]
[1733111580917,0.75794066,96902.0,96901.0,0.0008671]
[1733111581144,0.74841869,96902.0,96901.0,0.0008671]
[1733111581560,0.75641869,96902.0,96901.0,0.0008671]
[1733111581771,0.65641869,96902.0,96901.0,0.0008671]
[1733111581989,0.52931869,96902.0,96901.0,0.0008671]
[1733111582439,0.52031869,96902.0,96901.0,0.0008671]
[1733111582652,0.52931869,96902.0,96901.0,0.0008671]
[1733111582924,0.50793686,96902.0,96901.0,0.0008671]
[1733111583604,0.51493686,96902.0,96901.0,0.0008671]
[1733111584309,0.50793686,96902.0,96901.0,0.0008671]
[1733111584519,0.50993686,96902.0,96901.0,0.0008671]
[1733111585153,0.13805533,96902.0,96901.0,0.0008671]
[1733111585373,0.13133881,96902.0,96901.0,0.0008671]
[1733111585794,0.13233881,96902.0,96901.0,0.0008671]
[1733111586220,0.13533881,96902.0,96901.0,0.0008671]
[1733111586434,0.13733881,96902.0,96901.0,0.0008671]
[1733111586625,0.13433881,96902.0,96901.0,0.0008671]
[1733111587112,0.13533881,96902.0,96901.0,0.0008671]
[1733111587307,0.34173281,96902.0,96901.0,0.0008671]
[1733111587506,0.13205533,96902.0,96901.0,0.0008671]
[1733111587745,0.13433887,96902.0,96901.0,0.0008671]
[1733111587930,0.13133887,96902.0,96901.0,0.0008671]
[1733111588193,0.13333887,96902.0,96901.0,0.0008671]
[1733111589105,0.12933887,96902.0,96901.0,0.0008671]
[1733111589282,0.12905533,96902.0,96901.0,0.0008671]
[1733111589482,0.13233877,96902.0,96901.0,0.0008671]
[1733111589691,0.12805533,96902.0,96901.0,0.0008671]
[1733111589891,0.10633374,96902.0,96901.0,0.0008671]
[1733111590247,0.00548853,96902.0,96901.0,0.0819671]
[1733111590694,0.0037342,96902.0,96901.0,0.0819671]
[1733111590900,0.0027342,96902.0,96901.0,0.6656381]
[1733111591112,0.0027342,96902.0,96901.0,0.5976311]
[1733111591311,0.0017342,96902.0,96901.0,0.5976311]
[1733111591744,0.0047342,96902.0,96901.0,0.5976311]
[1733111591944,0.0017342,96902.0,96901.0,0.5976311]
[1733111592147,0.0027342,96902.0,96901.0,0.6006311]
[1733111592557,0.0017342,96902.0,96901.0,0.5976311]
[1733111592768,0.0017342,96902.0,96901.0,0.5996311]
[1733111592988,0.0017342,96902.0,96901.0,0.6006311]
[1733111593408,0.00173872,96919.0,96901.0,0.5996311]
[1733111593607,0.10284521,96918.0,96915.0,0.206365]
[1733111594066,0.00175544,96917.0,96915.0,0.206365]
[1733111594242,0.10284521,96916.0,96915.0,0.206365]
[1733111594634,0.10460171,96916.0,96915.0,0.206365]
[1733111595102,0.10460171,96916.0,96915.0,0.207365]
[1733111595274,0.10460171,96916.0,96915.0,0.001]
[1733111595493,0.10460171,96916.0,96914.0,0.206368]
[1733111596365,0.002283,96915.0,96908.0,0.206379]
[1733111596569,0.00176053,96914.0,96906.0,0.206385]
[1733111596942,0.00228305,96913.0,96901.0,0.0819671]
[1733111597144,0.206386,96906.0,96901.0,0.0008671]
[1733111597385,0.206389,96904.0,96901.0,0.0008671]
[1733111597592,0.10512867,96903.0,96901.0,0.0008671]
[1733111597811,0.10688885,96903.0,96901.0,0.0008671]
[1733111598054,0.206394,96902.0,96901.0,0.0008671]
[1733111598287,0.31152272,96902.0,96901.0,0.0008671]
[1733111598492,0.31099473,96902.0,96901.0,0.0008671]
[1733111599228,0.31399473,96902.0,96901.0,0.0008671]
[1733111599636,0.41499473,96902.0,96901.0,0.0008671]
[1733111599871,0.31499473,96902.0,96901.0,0.0008671]
[1733111600089,0.31399473,96902.0,96901.0,0.0008671]
[1733111600320,0.31099473,96902.0,96901.0,0.0008671]
[1733111600558,0.32611641,96902.0,96901.0,0.0008671]
[1733111601258,0.32911641,96902.0,96901.0,0.0008671]
[1733111601500,0.50871641,96902.0,96901.0,0.0008671]
[1733111601728,0.50671641,96902.0,96901.0,0.0008671]
[1733111601997,0.206413,96893.0,96882.0,0.2]
[1733111602246,0.31154191,96893.0,96882.0,0.2]
[1733111602495,0.31078429,96893.0,96882.0,0.2]
[1733111604006,0.68266582,96893.0,96882.0,0.2]
[1733111604232,0.78266582,96893.0,96882.0,0.2]
[1733111604403,0.78366582,96893.0,96882.0,0.2]
[1733111605526,0.79166582,96893.0,96882.0,0.2]
[1733111605973,0.79666582,96893.0,96882.0,0.2]
[1733111607687,0.78766582,96893.0,96882.0,0.2]
[1733111607891,0.79666582,96893.0,96892.0,0.14174629]
[1733111608641,0.78185812,96893.0,96892.0,0.13124611]
[1733111608848,0.78185812,96893.0,96892.0,0.10889203]
[1733111609058,0.78785812,96893.0,96892.0,0.10889203]
[1733111609490,0.79685812,96893.0,96892.0,0.10889203]
[1733111610284,0.79685812,96893.0,96892.0,0.10975773]
[1733111612082,0.79085812,96893.0,96892.0,0.10975773]
[1733111612292,0.78185812,96893.0,96892.0,0.10975773]
[1733111612514,0.78785812,96893.0,96892.0,0.10975773]
[1733111612742,0.79685812,96893.0,96892.0,0.10975773]
[1733111615205,0.206426,96887.0,96882.0,0.2]
[1733111615425,0.31294219,96887.0,96882.0,0.2]
[1733111615632,0.31065832,96887.0,96882.0,0.2]
[1733111616314,0.31065832,96887.0,96886.0,0.00110834]
[1733111616525,0.31565832,96887.0,96886.0,0.00110834]
[1733111617153,0.1,96883.0,96882.0,0.2]
[1733111617384,0.57188153,96874.0,96873.0,0.11417501]
[1733111617613,0.67472674,96874.0,96864.0,0.01554515]
[1733111617851,0.47188153,96852.0,96851.0,0.1646639]
[1733111618079,0.57188153,96845.0,96844.0,0.1622117]
[1733111618286,0.89074255,96845.0,96816.0,0.2]
[1733111618513,0.398,96838.0,96830.0,0.1608667]
[1733111618752,0.40939021,96831.0,96830.0,0.1298667]
[1733111618988,0.41741376,96831.0,96830.0,0.1298667]
[1733111619197,0.42749016,96831.0,96830.0,0.07564794]
[1733111619419,0.44266353,96831.0,96830.0,0.03581542]
[1733111620333,0.47647684,96831.0,96830.0,0.03581542]
[1733111620972,0.47747684,96831.0,96830.0,0.03581542]
[1733111621186,0.47647684,96831.0,96830.0,0.03581542]
[1733111621405,0.47747684,96831.0,96830.0,0.03581542]
[1733111621626,0.47102055,96831.0,96830.0,0.03581542]
[1733111622063,0.47302055,96831.0,96830.0,0.03581542]
[1733111622495,0.47202055,96831.0,96830.0,0.03581542]
[1733111622718,0.47790958,96831.0,96830.0,0.03581542]
[1733111622950,0.47590958,96831.0,96830.0,0.03581542]
[1733111623165,0.84779111,96831.0,96830.0,0.03581542]
[1733111623389,0.84679111,96831.0,96830.0,0.03581542]
[1733111623615,0.84679111,96831.0,96830.0,0.03668142]
[1733111623836,0.84779111,96831.0,96830.0,0.03668142]
[1733111624286,0.84879111,96831.0,96830.0,0.03668142]
[1733111624734,0.84779111,96831.0,96830.0,0.03668142]
[1733111624948,0.84779111,96831.0,96830.0,0.03487615]
[1733111625159,0.30656,96824.0,96816.0,0.2]
[1733111625395,0.31319353,96817.0,96816.0,0.16694247]
[1733111625605,0.4773675,96817.0,96816.0,0.16694247]
[1733111625832,0.58665693,96817.0,96816.0,0.06365247]
[1733111626058,0.66255693,96817.0,96816.0,0.06365247]
[1733111626311,0.69795693,96817.0,96780.0,0.2]
[1733111626520,0.1,96774.0,96773.0,0.00743694]
[1733111626732,0.41832542,96774.0,96773.0,0.00743694]
[1733111626948,0.447019,96774.0,96773.0,0.00743694]
[1733111627356,0.447019,96774.0,96773.0,0.00243694]
[1733111627992,0.44761141,96774.0,96773.0,0.00243694]
[1733111628218,0.46830496,96774.0,96773.0,0.00243694]
[1733111628449,0.48270203,96774.0,96773.0,0.00243694]
[1733111628674,0.48370203,96774.0,96773.0,0.00243694]
[1733111629157,0.34961141,96774.0,96773.0,0.00243694]
[1733111629383,0.206669,96773.0,96766.0,0.15303601]
[1733111629614,0.206677,96769.0,96766.0,0.15303601]
[1733111629849,0.10284521,96767.0,96766.0,0.15303601]
[1733111630087,0.13611218,96767.0,96766.0,0.15303601]
[1733111630792,0.12965421,96767.0,96766.0,0.15303601]
[1733111631268,0.1273675,96767.0,96766.0,0.15303601]
[1733111631526,0.12965412,96767.0,96766.0,0.15303601]
[1733111631731,0.13865412,96767.0,96766.0,0.15403601]
[1733111631948,0.11456348,96767.0,96766.0,0.15503601]
[1733111632176,0.11223336,96767.0,96766.0,0.15503601]
[1733111632381,0.11413172,96767.0,96766.0,0.15403601]
[1733111632612,0.12823347,96767.0,96766.0,0.15503601]
[1733111632848,0.11884521,96767.0,96766.0,0.15503601]
[1733111633065,0.11184521,96767.0,96766.0,0.23063601]
[1733111633501,0.11884521,96767.0,96766.0,0.23163601]
[1733111633936,0.10984521,96767.0,96766.0,0.23063601]
[1733111634174,0.10984521,96767.0,96766.0,0.15403601]
[1733111634379,0.11884521,96767.0,96766.0,0.15503601]
[1733111634581,0.12122951,96767.0,96766.0,0.15303601]
[1733111634787,0.12351626,96767.0,96766.0,0.15303601]
[1733111634992,0.12551626,96767.0,96766.0,0.15303601]
[1733111635196,0.12551626,96767.0,96766.0,0.15390301]
[1733111635427,0.13351626,96767.0,96766.0,0.15490301]
[1733111635637,0.13151626,96767.0,96766.0,0.15490301]
[1733111635864,0.42877521,96767.0,96766.0,0.15490301]
[1733111636082,0.34042304,96767.0,96766.0,0.15490301]
[1733111636285,0.53342304,96767.0,96766.0,0.15390301]
[1733111636493,0.5484318,96767.0,96766.0,0.15390301]
[1733111636744,0.64600693,96767.0,96766.0,0.15390301]
[1733111637158,0.65500693,96767.0,96766.0,0.15490301]
[1733111637360,0.64700693,96767.0,96766.0,0.13423501]
[1733111637565,0.64700693,96767.0,96766.0,0.05056301]
[1733111637780,0.64800693,96767.0,96766.0,0.05956301]
[1733111638000,0.63800693,96767.0,96766.0,0.05056301]
[1733111638205,0.63900693,96767.0,96766.0,0.05056301]
[1733111638433,0.4424318,96767.0,96766.0,0.05956301]
[1733111638655,0.4414318,96767.0,96766.0,0.05956301]
[1733111639089,0.4424318,96767.0,96766.0,0.05956301]
[1733111639546,0.5424318,96767.0,96766.0,0.05956301]
[1733111639776,0.4424318,96767.0,96766.0,0.05956301]
[1733111639982,0.3424318,96767.0,96766.0,0.05956301]
[1733111640395,0.32742304,96767.0,96766.0,0.05956301]
[1733111640862,0.10484521,96767.0,96766.0,0.05956301]
[1733111641065,0.10384521,96767.0,96766.0,0.10816301]
[1733111641298,0.11084521,96767.0,96766.0,0.10016301]
[1733111641519,0.11084521,96767.0,96766.0,0.10116301]
[1733111641520,0.11984521,96767.0,96766.0,0.10116301]
[1733111641759,0.11184521,96767.0,96766.0,0.09916301]
[1733111642255,0.12084521,96767.0,96766.0,0.05156301]
[1733111642490,0.12813192,96767.0,96766.0,0.05256301]
[1733111642702,0.12813192,96767.0,96766.0,0.05203171]
[1733111642908,0.12313192,96767.0,96766.0,0.05103171]
[1733111643124,0.08969303,96767.0,96766.0,0.05103171]
[1733111643542,0.08969295,96767.0,96766.0,0.05103171]
[1733111643747,0.08740632,96767.0,96766.0,0.13113171]
[1733111643961,0.06940632,96767.0,96766.0,0.13013171]
[1733111644437,0.07440632,96767.0,96766.0,0.13113171]
[1733111644665,0.07340632,96767.0,96766.0,0.13013171]
[1733111644861,0.06940632,96767.0,96766.0,0.13113171]
[1733111645073,0.07040632,96767.0,96766.0,0.13113171]
[1733111645281,0.07040632,96767.0,96766.0,0.13013171]
[1733111645487,0.07269295,96767.0,96766.0,0.13013171]
[1733111645704,0.07869295,96767.0,96766.0,0.13213171]
[1733111645924,0.07869295,96767.0,96766.0,0.05203171]
[1733111646159,0.07869295,96767.0,96766.0,0.03587171]
[1733111646389,0.306696,96760.0,96759.0,0.2]
[1733111646608,0.62273474,96760.0,96759.0,0.2]
[1733111646814,0.54724659,96760.0,96759.0,0.2]
[1733111647718,0.54624659,96760.0,96759.0,0.2]
[1733111647924,0.54733306,96760.0,96759.0,0.209]
[1733111648428,0.52273474,96760.0,96759.0,0.209]
[1733111648641,0.52373474,96760.0,96759.0,0.21]
[1733111649931,0.54834991,96760.0,96759.0,0.21]
[1733111650334,0.64834991,96760.0,96759.0,0.21]
[1733111650740,0.65481229,96760.0,96759.0,0.21]
[1733111652289,0.64834991,96760.0,96759.0,0.1081534]
[1733111652512,0.75118137,96760.0,96759.0,0.0048034]
[1733111652734,0.206711,96753.0,96752.0,0.2]
[1733111652942,0.31184333,96753.0,96752.0,0.2]
[1733111653170,0.34063376,96753.0,96752.0,0.2]
[1733111653835,0.66082729,96753.0,96752.0,0.096645]
[1733111654037,0.66982729,96753.0,96752.0,0.097645]
[1733111654256,0.79282729,96753.0,96752.0,0.07441161]
[1733111654473,0.306726,96746.0,96745.0,0.17312161]
[1733111654698,0.54348022,96746.0,96745.0,0.17312161]
[1733111655391,0.55679464,96746.0,96745.0,0.17312161]
[1733111655612,0.45396318,96746.0,96745.0,0.17312161]
[1733111655820,0.45396318,96746.0,96745.0,0.16312161]
[1733111656292,0.55384229,96746.0,96745.0,0.16312161]
[1733111656719,0.34064876,96746.0,96745.0,0.16312161]
[1733111656922,0.34964876,96746.0,96745.0,0.16412161]
[1733111657122,0.12746038,96746.0,96745.0,0.16312161]
[1733111657323,0.13274746,96746.0,96745.0,0.16312161]
[1733111657560,0.13974746,96746.0,96745.0,0.16412161]
[1733111657748,0.12974746,96746.0,96745.0,0.16312161]
[1733111658170,0.14674746,96746.0,96745.0,0.16412161]
[1733111658382,0.14674746,96746.0,96745.0,0.16498871]
[1733111658383,0.14446038,96746.0,96745.0,0.16498871]
[1733111658564,0.12974755,96746.0,96745.0,0.16398871]
[1733111658784,0.11459975,96746.0,96745.0,0.16398871]
[1733111659014,0.11659975,96746.0,96745.0,0.16398871]
[1733111659228,0.32979328,96746.0,96745.0,0.16398871]
[1733111659439,0.42750611,96746.0,96745.0,0.16398871]
[1733111659642,0.44265391,96746.0,96745.0,0.16398871]
[1733111659855,0.42750611,96746.0,96745.0,0.16398871]
[1733111660200,0.43552007,96746.0,96745.0,0.16498871]
[1733111660311,0.44069021,96746.0,96745.0,0.16398871]
[1733111660538,0.34769021,96746.0,96745.0,0.16398871]
[1733111660763,0.34152007,96746.0,96745.0,0.16498871]
[1733111660969,0.34769021,96746.0,96745.0,0.16398871]
[1733111661200,0.34069021,96746.0,96745.0,0.16398871]
[1733111661485,0.32752007,96746.0,96745.0,0.24788871]
[1733111661709,0.11432654,96746.0,96745.0,0.23558514]
[1733111661914,0.11432654,96746.0,96745.0,0.28678514]
[1733111662326,0.10484521,96746.0,96745.0,0.24058514]
[1733111662544,0.11432974,96746.0,96745.0,0.24058514]
[1733111662952,0.11432936,96746.0,96745.0,0.24058514]
[1733111663162,0.11232936,96746.0,96745.0,0.23558514]
[1733111663395,0.11184521,96746.0,96745.0,0.23658514]
[1733111663840,0.11184521,96746.0,96745.0,0.23558514]
[1733111664109,0.12384521,96746.0,96745.0,0.23658514]
[1733111664326,0.12384521,96746.0,96745.0,0.23558514]
[1733111664327,0.10584521,96746.0,96745.0,0.23558514]
[1733111664536,0.10284521,96746.0,96745.0,0.28178514]
[1733111664756,0.11184521,96746.0,96745.0,0.28278514]
[1733111664986,0.11684521,96746.0,96745.0,0.28178514]
[1733111665444,0.11184521,96746.0,96745.0,0.28178514]
[1733111665650,0.11684521,96746.0,96745.0,0.28178514]
[1733111665860,0.014,96746.0,96745.0,0.28178514]
[1733111666076,0.21319353,96782.0,96746.0,0.0759]
[1733111666322,0.10284521,96766.0,96747.0,0.00102832]
[1733111666534,0.10284521,96766.0,96748.0,0.0759]
[1733111666783,0.10284521,96766.0,96755.0,0.206706]
[1733111667016,0.10284521,96766.0,96757.0,0.206703]
[1733111667234,0.10284521,96766.0,96756.0,0.1221]
[1733111667914,0.10884521,96766.0,96756.0,0.1221]
[1733111668212,0.11084521,96766.0,96756.0,0.1221]
[1733111668425,0.00228655,96765.0,96756.0,0.1221]
[1733111668637,0.20669,96763.0,96756.0,0.1221]
[1733111668863,0.206694,96761.0,96756.0,0.1221]
[1733111669074,0.10513189,96760.0,96756.0,0.1221]
[1733111670638,0.10284521,96760.0,96756.0,0.1221]
[1733111670867,0.006,96760.0,96757.0,0.00102819]
[1733111671078,0.006,96760.0,96757.0,0.00102788]
[1733111671509,0.006,96760.0,96758.0,0.206701]
[1733111672165,0.001,96760.0,96758.0,0.206701]
[1733111672391,0.001,96760.0,96758.0,0.20772888]
[1733111672622,0.007,96760.0,96758.0,0.00102788]
[1733111672830,0.001,96760.0,96756.0,0.1221]
[1733111673069,0.10284521,96759.0,96758.0,0.001]
[1733111673943,0.10284521,96759.0,96756.0,0.1221]
[1733111675329,0.10684521,96759.0,96756.0,0.1221]
[1733111675978,0.20898762,96758.0,96756.0,0.0759]
[1733111676188,0.10284521,96757.0,96756.0,0.0759]
[1733111676826,0.10240448,96757.0,96756.0,0.0759]
[1733111677738,0.206705,96756.0,96745.0,0.0798671]
[1733111677954,0.206719,96750.0,96745.0,0.0798671]
[1733111678171,0.10284521,96749.0,96745.0,0.0798671]
[1733111680600,0.10284521,96749.0,96745.0,0.0818671]
[1733111681309,0.10284521,96749.0,96745.0,0.0798671]
[1733111681535,0.10284521,96749.0,96745.0,0.0818671]
[1733111681742,0.10284521,96749.0,96745.0,0.0429771]
[1733111682186,0.10284521,96749.0,96745.0,0.0409771]
[1733111682417,0.001,96749.0,96746.0,0.206726]
[1733111682639,0.001,96749.0,96746.0,0.00102843]
[1733111682865,0.005,96749.0,96746.0,0.00102843]
[1733111683090,0.005,96749.0,96745.0,0.0418444]
[1733111683342,0.005,96749.0,96745.0,0.4552994]
[1733111683588,0.005,96749.0,96745.0,0.24959984]
[1733111683816,0.011,96749.0,96745.0,0.25059984]
[1733111684271,0.01,96749.0,96745.0,0.25059984]
[1733111684499,0.00402128,96760.0,96745.0,0.24959984]
[1733111684709,0.001,96749.0,96745.0,0.24959984]
[1733111684922,0.001,96749.0,96747.0,0.206724]
[1733111685127,0.00228668,96758.0,96747.0,0.206724]
[1733111685336,0.10284521,96757.0,96747.0,0.206724]
[1733111685557,0.001,96749.0,96747.0,0.206724]
[1733111685763,0.001,96749.0,96745.0,0.2485724]
[1733111685972,0.004,96749.0,96746.0,0.00102842]
[1733111686193,0.004,96749.0,96747.0,0.206724]
[1733111686635,0.10284521,96757.0,96752.0,0.413426]
[1733111687061,0.10284521,96757.0,96752.0,0.206713]
[1733111687286,0.10784521,96757.0,96752.0,0.206713]
[1733111687543,0.10284521,96757.0,96752.0,0.206713]
[1733111688166,0.10284521,96757.0,96747.0,0.206724]
[1733111688400,0.001,96749.0,96747.0,0.20775234]
[1733111688850,0.10284521,96757.0,96747.0,0.20775234]
[1733111689073,0.10284521,96757.0,96752.0,0.206713]
[1733111689301,0.10484521,96757.0,96752.0,0.206713]
[1733111689507,0.11084521,96757.0,96752.0,0.207713]
[1733111689737,0.10284521,96757.0,96752.0,0.206713]
[1733111689951,0.10384521,96757.0,96752.0,0.206713]
[1733111690169,0.10784521,96757.0,96752.0,0.206713]
[1733111690378,0.10384521,96757.0,96752.0,0.206713]
[1733111690796,0.10984521,96757.0,96752.0,0.207713]
[1733111691276,0.10884521,96757.0,96753.0,0.206711]
[1733111691497,0.10884521,96757.0,96753.0,0.413422]
[1733111691714,0.11084521,96757.0,96753.0,0.206711]
[1733111692387,0.10884521,96757.0,96753.0,0.206711]
[1733111692615,0.11084521,96757.0,96753.0,0.206711]
[1733111693036,0.10484521,96757.0,96753.0,0.413422]
[1733111693458,0.11184521,96757.0,96753.0,0.414422]
[1733111694102,0.11184521,96757.0,96753.0,0.001]
[1733111694964,0.206705,96756.0,96753.0,0.001]
[1733111695219,0.10284521,96755.0,96743.0,0.00062022]
[1733111695455,0.10284521,96752.0,96745.0,0.0008673]
[1733111695666,0.206726,96747.0,96745.0,0.0008673]
[1733111695884,0.31832594,96746.0,96745.0,0.0008673]
[1733111696120,0.31603874,96746.0,96745.0,0.0008673]
[1733111696828,0.31603874,96746.0,96745.0,0.0018673]
[1733111697042,0.32555498,96746.0,96745.0,0.0008673]
[1733111697262,0.33455498,96746.0,96745.0,0.0018673]
[1733111697699,0.32503874,96746.0,96745.0,0.0018673]
[1733111697908,0.33003874,96746.0,96745.0,0.0018673]
[1733111698347,0.33955027,96746.0,96745.0,0.0018673]
[1733111698550,0.33003874,96746.0,96745.0,0.0018673]
[1733111698783,0.34316779,96746.0,96745.0,0.0018673]
[1733111699021,0.35267412,96746.0,96745.0,0.0018673]
[1733111699225,0.34316779,96746.0,96745.0,0.0018673]
[1733111702228,0.12997426,96746.0,96745.0,0.0018673]
[1733111702452,0.13226142,96746.0,96745.0,0.0018673]
[1733111703177,0.11913237,96746.0,96745.0,0.0018673]
[1733111704514,0.11684521,96746.0,96745.0,0.0018673]
[1733111704887,0.014,96746.0,96745.0,0.0825673]
[1733111705064,0.014,96746.0,96745.0,0.13189575]
[1733111705265,0.014,96746.0,96745.0,0.25489575]
[1733111705475,0.014,96746.0,96745.0,0.2538673]
[1733111705679,0.005,96746.0,96745.0,0.3528673]
[1733111705853,0.008,96746.0,96745.0,0.3528673]
[1733111706254,0.0017346,96757.0,96756.0,0.357705]
[1733111706533,0.0017346,96757.0,96756.0,0.334705]
[1733111707391,0.0017346,96757.0,96756.0,0.357705]
[1733111707592,0.0017346,96757.0,96756.0,0.457705]
[1733111707807,0.0017346,96757.0,96756.0,2.071262]
[1733111708070,0.0037346,96757.0,96756.0,2.176642]
[1733111708313,0.0037346,96757.0,96756.0,2.129291]
[1733111708734,0.0017346,96766.0,96765.0,0.703986]
[1733111709382,0.00228572,96817.0,96773.0,0.706269]
[1733111709596,0.42203791,96825.0,96773.0,0.93160165]
[1733111709803,0.20656,96824.0,96773.0,0.93160165]
[1733111709985,0.00228534,96823.0,96808.0,0.206593]
[1733111710230,0.10513053,96822.0,96808.0,0.206593]
[1733111710664,0.10513053,96822.0,96797.0,0.1]
[1733111710665,0.10284521,96809.0,96782.0,0.0496]
[1733111710869,0.10284521,96809.0,96773.0,0.12248744]
[1733111710870,0.20662,96796.0,96773.0,0.12848744]
[1733111711073,0.0806,96812.0,96771.0,0.206672]
[1733111711074,0.10513133,96795.0,96771.0,0.206672]
[1733111711295,0.10513133,96795.0,96767.0,0.2476]
[1733111711296,0.002286,96794.0,96774.0,0.00102719]
[1733111711508,0.10284521,96795.0,96789.0,0.206633]
[1733111711722,0.10284521,96795.0,96789.0,0.413267]
[1733111711942,0.10284521,96795.0,96789.0,0.413268]
[1733111712156,0.002,96796.0,96789.0,0.413268]
[1733111712351,0.002,96796.0,96791.0,0.41326]
[1733111712580,0.002,96796.0,96793.0,0.206626]
[1733111712828,0.002,96796.0,96795.0,0.206622]
[1733111713031,0.002,96796.0,96795.0,0.20764797]
[1733111713244,0.00228545,96815.0,96795.0,0.41426997]